bitfinex-derivatives/quotes_SOLF0:USTF0_20241224
["timestamp","ask_amount","ask_price","bid_price","bid_amount"]
[1735041864600,5.697,193.31,193.24,2.591]
[1735041867102,5.697,193.31,193.25,2.591]
[1735041867399,56.49118359,193.45,193.26,3.22]
[1735041867599,1.4863,193.39,193.32,2.59]
[1735041867903,1.4863,193.39,193.27,12.9152379]
[1735041868101,14.4015379,193.39,193.27,12.9152379]
[1735041868302,14.4015379,193.39,193.28,2.5906]
[1735041868503,2.5899,193.34,193.28,2.5906]
[1735041869602,2.5896,193.36,193.3,2.5902]
[1735041869991,2.5896,193.36,193.27,16.1352379]
[1735041870200,2.5894,193.38,193.31,2.5902]
[1735041870893,17.6215379,193.39,193.31,2.5902]
[1735041871098,2.5895,193.37,193.31,2.5902]
[1735041871399,2.5895,193.37,193.27,16.1352379]
[1735041871600,2.5893,193.38,193.27,16.1352379]
[1735041872401,1.4863,193.39,193.33,2.5899]
[1735041872594,1.4863,193.39,193.3,12.9152379]
[1735041872807,1.4863,193.39,193.33,12.9152379]
[1735041873000,1.4863,193.39,193.33,16.1352379]
[1735041873201,3.0017,193.44,193.33,16.1352379]
[1735041873396,1.5044,193.43,193.33,16.1352379]
[1735041874998,4.0931,193.43,193.37,2.5894]
[1735041875197,1.5044,193.43,193.37,2.5894]
[1735041875800,2.5886,193.43,193.35,2.5896]
[1735041876104,2.5886,193.43,193.34,12.9152379]
[1735041877108,2.5888,193.42,193.34,12.9152379]
[1735041877402,2.5888,193.42,193.34,16.1352379]
[1735041877603,12.9152379,193.44,193.32,3.22]
[1735041877810,12.9152379,193.44,193.31,16.1352379]
[1735041878405,1.5998,193.46,193.28,12.9152379]
[1735041878406,12.9152379,193.41,193.28,12.9152379]
[1735041878709,1.5998,193.46,193.23,3.22]
[1735041878710,12.9152379,193.35,193.23,3.22]
[1735041878906,2.5904,193.3,193.23,3.22]
[1735041880003,2.5904,193.3,193.23,5.8112]
[1735041880204,3.015,193.31,193.23,5.8112]
[1735041880205,3.015,193.31,193.23,3.22]
[1735041880809,3.015,193.31,193.26,2.5908]
[1735041882807,1.5148,193.31,193.26,2.5908]
[1735041883610,4.1051,193.31,193.24,2.5911]
[1735041885008,1.5148,193.31,193.23,3.22]
[1735041885309,1.5148,193.31,193.23,5.8113]
[1735041886504,2.5905,193.29,193.23,5.8113]
[1735041887104,1.5148,193.31,193.23,3.22]
[1735041887309,4.1051,193.31,193.25,2.591]
[1735041890212,2.5904,193.3,193.25,2.591]
[1735041895118,12.9152379,193.3,193.16,12.9152379]
[1735041895418,12.9152379,193.27,193.17,3.18]
[1735041895628,1.5657,193.26,193.17,3.18]
[1735041896014,2.5913,193.24,193.18,2.5919]
[1735041897412,2.5915,193.22,193.16,2.5921]
[1735041898519,2.5915,193.22,193.15,3.18]
[1735041898520,2.5913,193.24,193.18,2.5919]
[1735041900924,1.5657,193.26,193.16,2.5921]
[1735041901827,2.5914,193.22,193.16,2.5921]
[1735041902226,8.24452312,193.22,193.16,2.5921]
[1735041902528,8.24452312,193.22,193.15,8.24452312]
[1735041902721,1.5024,193.21,193.15,8.24452312]
[1735041902918,2.5917,193.2,193.15,8.24452312]
[1735041903320,8.24452312,193.2,193.14,2.5924]
[1735041903518,10.83662312,193.18,193.11,10.83732312]
[1735041904122,2.5921,193.18,193.11,2.5928]
[1735041904333,12.88831714,193.2,193.09,2.5931]
[1735041904827,12.88831714,193.2,193.13,2.5926]
[1735041905128,3.1002,193.21,193.1,12.88831714]
[1735041905425,3.18,193.24,193.13,12.88831714]
[1735041905624,1.5657,193.26,193.16,12.88831714]
[1735041906725,4.1566,193.26,193.2,2.5916]
[1735041907327,1.5657,193.26,193.2,2.5916]
[1735041907527,1.5657,193.26,193.21,2.5915]
[1735041910026,14.40721714,193.29,193.24,2.591]
[1735041910027,1.5189,193.29,193.24,2.591]
[1735041910226,1.5189,193.29,193.2,3.18]
[1735041911129,1.5189,193.29,193.25,2.5909]
[1735041911627,15.47841714,193.32,193.22,12.88831714]
[1735041911923,1.4709,193.33,193.22,12.88831714]
[1735041912118,1.97270994,193.35,193.25,12.88831714]
[1735041912323,1.97270994,193.35,193.26,3.18]
[1735041912521,14.44761714,193.38,193.28,12.88831714]
[1735041912725,1.5593,193.38,193.31,2.5902]
[1735041912932,1.5593,193.38,193.28,12.88831714]
[1735041913433,1.5593,193.38,193.32,2.59]
[1735041914032,4.1756,193.39,193.32,2.59]
[1735041914531,4.1756,193.39,193.33,2.59]
[1735041915734,0.19048,193.41,193.32,3.18]
[1735041915933,0.19048,193.41,193.33,3.18]
[1735041916228,0.19048,193.41,193.34,12.88831714]
[1735041917129,0.19048,193.41,193.33,3.18]
[1735041917832,0.19048,193.41,193.31,12.88831714]
[1735041918037,0.19048,193.41,193.32,3.18]
[1735041918232,0.19048,193.41,193.31,12.88831714]
[1735041918428,0.19048,193.41,193.32,3.18]
[1735041918630,0.19048,193.41,193.34,2.5897]
[1735041919534,0.19048,193.41,193.35,2.5896]
[1735041920834,2.5889,193.42,193.35,2.5896]
[1735041923741,1.5693,193.43,193.33,5.7899]
[1735041924741,2.5891,193.4,193.34,2.5898]
[1735041926641,12.88831714,193.38,193.26,105.55165729]
[1735041926849,12.88831714,193.38,193.27,3.2]
[1735041927138,12.88831714,193.35,193.27,3.2]
[1735041927437,12.88831714,193.38,193.27,3.2]
[1735041928541,15.47771714,193.38,193.31,2.5902]
[1735041929036,3.0559,193.39,193.28,12.88831714]
[1735041929241,5.6451,193.39,193.33,2.5899]
[1735041929438,3.0559,193.39,193.28,12.88831714]
[1735041929632,2.5895,193.37,193.3,3.2]
[1735041929833,2.5895,193.37,193.3,5.7903]
[1735041930035,15.94421714,193.39,193.27,3.2]
[1735041930244,2.5899,193.34,193.27,5.7906]
[1735041930438,15.94421714,193.39,193.27,5.7906]
[1735041930643,15.94421714,193.39,193.27,3.2]
[1735041930841,2.5896,193.36,193.3,2.5903]
[1735041931038,15.94421714,193.39,193.28,12.88831714]
[1735041932644,2.5894,193.37,193.31,2.5902]
[1735041934547,2.5893,193.38,193.28,12.88831714]
[1735041934845,1.5693,193.43,193.31,12.88831714]
[1735041935251,2.5889,193.41,193.35,2.5896]
[1735041935446,12.88831714,193.45,193.35,3.2]
[1735041936251,12.88831714,193.45,193.31,12.88831714]
[1735041936454,12.88831714,193.42,193.32,3.2]
[1735041936651,12.88831714,193.42,193.31,3.2]
[1735041937549,2.5892,193.39,193.32,2.59]
[1735041939558,12.88831714,193.42,193.28,12.88831714]
[1735041939854,2.5895,193.37,193.3,2.5902]
[1735041942857,2.5895,193.37,193.31,2.5902]
[1735041943356,12.88831714,193.39,193.27,3.2]
[1735041943550,3.1561,193.36,193.29,2.5905]
[1735041944355,2.5898,193.35,193.29,2.5905]
[1735041947259,3.1561,193.36,193.27,3.2]
[1735041947852,2.59,193.33,193.28,2.5906]
[1735041948563,3.1561,193.36,193.29,2.5905]
[1735041949465,5.7457,193.36,193.31,2.5902]
[1735041949762,3.1561,193.36,193.28,12.88831714]
[1735041949961,3.1561,193.36,193.3,2.5903]
[1735041950156,3.1561,193.36,193.32,8.23008044]
[1735041950356,1.5148,193.38,193.32,8.23008044]
[1735041950855,1.5148,193.38,193.33,2.5899]
[1735041951755,4.1041,193.38,193.33,2.5899]
[1735041953062,1.5148,193.38,193.31,2.5901]
[1735041953261,1.5148,193.38,193.28,3.2]
[1735041953960,2.5898,193.35,193.29,2.5905]
[1735041954563,12.85942735,193.36,193.26,118.41108464]
[1735041955061,12.85942735,193.36,193.26,105.55165729]
[1735041955262,2.59,193.33,193.27,2.5907]
[1735041955864,2.59,193.33,193.26,105.55165729]
[1735041956069,2.59,193.33,193.28,2.5906]
[1735041957760,12.85942735,193.36,193.26,105.55165729]
[1735041957961,2.5901,193.32,193.27,2.5907]
[1735041958859,2.5904,193.31,193.26,108.14255729]
[1735041959467,16.05942735,193.36,193.26,105.55165729]
[1735041959664,12.85942735,193.33,193.22,3.2]
[1735041959870,3.1141,193.32,193.2,12.85942735]
[1735041960164,3.1141,193.32,193.21,3.2]
[1735041960468,2.5906,193.28,193.23,2.5913]
[1735041960964,3.1141,193.32,193.23,2.5913]
[1735041961163,2.5905,193.29,193.23,2.5913]
[1735041963462,2.5905,193.29,193.21,3.2]
[1735041963667,3.1141,193.32,193.23,12.85942735]
[1735041964869,1.5148,193.38,193.26,12.85942735]
[1735041965170,15.99412735,193.37,193.26,15.45032735]
[1735041965365,15.99412735,193.37,193.23,12.85942735]
[1735041965563,2.59,193.33,193.25,2.591]
[1735041965773,15.99412735,193.37,193.25,2.591]
[1735041966073,15.99412735,193.37,193.23,16.05942735]
[1735041966280,2.5904,193.3,193.24,2.5911]
[1735041967171,15.99412735,193.37,193.25,2.5909]
[1735041967472,2.5903,193.31,193.25,2.5909]
[1735041968776,2.5905,193.29,193.24,2.5911]
[1735041969268,3.2,193.33,193.24,2.5911]
[1735041970373,2.5908,193.27,193.23,2.5913]
[1735041971276,12.85942735,193.31,193.21,2.5916]
[1735041971475,1.5435,193.3,193.21,2.5916]
[1735041971874,3.0317,193.29,193.21,2.5916]
[1735041972374,2.5912,193.25,193.21,2.5916]
[1735041973771,2.5914,193.23,193.19,2.5917]
[1735041973978,12.85942735,193.25,193.14,3.2]
[1735041974277,3.2,193.27,193.14,3.2]
[1735041974278,2.5919,193.19,193.15,2.5923]
[1735041974472,8.24594784,193.2,193.11,56.01901647]
[1735041974672,3.0026,193.19,193.12,8.24594784]
[1735041974876,10.83794784,193.18,193.13,2.5925]
[1735041975278,10.83794784,193.18,193.12,8.24594784]
[1735041975580,10.83794784,193.18,193.12,10.83864784]
[1735041976273,2.592,193.18,193.12,2.5927]
[1735041976567,2.5921,193.17,193.1,15.47773286]
[1735041976970,2.5921,193.17,193.1,12.88483286]
[1735041977578,2.5921,193.17,193.11,2.5928]
[1735041981782,2.5921,193.17,193.12,2.5928]
[1735041982082,3.0026,193.19,193.1,12.88483286]
[1735041982279,1.5873,193.21,193.13,12.88483286]
[1735041982480,12.88483286,193.25,193.13,12.88483286]
[1735041983578,12.88483286,193.25,193.15,2.5923]
[1735041984177,2.5917,193.21,193.15,2.5923]
[1735041984480,12.88483286,193.25,193.15,2.5923]
[1735041985076,12.88483286,193.22,193.15,2.5923]
[1735041985382,3.1016,193.21,193.15,2.5923]
[1735041985581,3.1016,193.21,193.12,3.18]
[1735041985783,4.7092,193.21,193.13,2.5925]
[1735041985979,4.7092,193.21,193.12,3.18]
[1735041986178,3.1016,193.21,193.17,2.5921]
[1735041986375,3.1016,193.21,193.13,12.88483286]
[1735041987380,3.1016,193.21,193.16,2.5921]
[1735041987780,5.6932,193.21,193.16,2.5921]
[1735041990082,2.5916,193.21,193.16,2.5923]
[1735041990283,2.5916,193.21,193.13,12.88483286]
[1735041990783,2.5916,193.21,193.15,2.5924]
[1735041990983,2.5916,193.21,193.13,12.88483286]
[1735041990984,12.88483286,193.22,193.12,3.18]
[1735041991182,12.88483286,193.22,193.12,2.5928]
[1735041991385,12.88483286,193.19,193.1,3.18]
[1735041991985,12.88483286,193.19,193.07,16.06483286]
[1735041992986,12.88483286,193.19,193.08,3.18]
[1735041993682,2.5924,193.17,193.11,2.5931]
[1735041993883,12.88483286,193.19,193.08,3.18]
[1735041994084,12.88483286,193.19,193.07,16.06483286]
[1735041994284,12.88483286,193.19,193.08,2.5934]
[1735041994285,2.5928,193.14,193.08,2.5934]
[1735041995300,12.88483286,193.19,193.04,12.88483286]
[1735041995496,12.88483286,193.13,193.01,69.42483286]
[1735041995694,3.2114,193.12,193.01,12.88483286]
[1735041995894,2.5934,193.09,193.02,2.5942]
[1735041996099,2.5934,193.09,193.01,16.06483286]
[1735041996294,4.6798,193.12,193.01,3.18]
[1735041996800,4.6798,193.12,193.01,16.06483286]
[1735041997000,3.2114,193.12,193.04,12.88483286]
[1735041997197,3.2114,193.12,193.09,2.5933]
[1735041997397,1.611,193.12,193.04,12.88483286]
[1735041997796,1.611,193.12,193.06,2.5936]
[1735041997991,1.611,193.12,193.01,12.88483286]
[1735041998199,8.25432885,193.1,193.03,8.25432885]
[1735041998398,10.84762885,193.1,193.03,10.84832885]
[1735041998595,8.25432885,193.08,192.97,56.01901647]
[1735041998795,8.25432885,193.06,192.98,3.18]
[1735041998995,8.25432885,193.06,192.99,8.25432885]
[1735041999499,10.84822885,193.06,193.0,2.5946]
[1735042000202,2.5939,193.06,193.0,2.5946]
[1735042001194,2.5941,193.04,192.98,2.5948]
[1735042001394,2.5941,193.04,192.95,3.18]
[1735042001589,12.90310999,193.05,192.95,3.18]
[1735042001800,1.4833,193.04,192.93,12.90310999]
[1735042002099,1.4833,193.04,192.93,16.08310999]
[1735042002301,2.5942,193.03,192.93,16.08310999]
[1735042002603,1.4833,193.04,192.93,16.08310999]
[1735042002799,4.0774,193.04,192.98,2.5948]
[1735042003003,2.9893,193.07,192.96,12.90310999]
[1735042003199,2.9893,193.07,192.99,12.90310999]
[1735042003402,2.9893,193.07,193.01,2.5944]
[1735042003705,2.9893,193.07,192.99,16.08310999]
[1735042004303,16.08310999,193.1,192.99,16.08310999]
[1735042004507,3.18,193.1,192.99,16.08310999]
[1735042004694,12.90310999,193.13,192.99,16.08310999]
[1735042005404,2.5932,193.11,193.03,2.5941]
[1735042005702,12.90310999,193.13,192.99,16.08310999]
[1735042006204,12.90310999,193.13,192.99,12.90310999]
[1735042006408,12.90310999,193.13,193.03,2.5941]
[1735042007105,2.5932,193.1,193.03,2.5941]
[1735042008607,12.90310999,193.13,193.03,2.5941]
[1735042008907,2.5934,193.09,193.03,2.5941]
[1735042015110,2.5934,193.09,192.92,161.03748674]
[1735042015111,12.90310999,193.07,192.93,12.90310999]
[1735042015311,12.90310999,193.07,192.95,3.18]
[1735042015511,4.6267,193.06,192.95,3.18]
[1735042016514,2.5941,193.04,192.98,2.5948]
[1735042019410,2.5941,193.04,192.94,3.18]
[1735042019615,3.0397,193.06,192.96,12.90310999]
[1735042019805,12.90310999,193.1,192.99,12.90310999]
[1735042020010,12.90310999,193.1,193.0,3.18]
[1735042020818,12.90310999,193.1,193.02,2.5943]
[1735042020819,2.5935,193.08,193.02,2.5943]
[1735042023116,2.5938,193.06,193.0,2.5944]
[1735042023318,3.0632,193.07,192.98,3.18]
[1735042023617,15.96630999,193.07,192.98,3.18]
[1735042023816,2.5939,193.05,192.99,2.5946]
[1735042024815,2.594,193.04,192.99,2.5946]
[1735042025620,15.96630999,193.07,192.96,3.18]
[1735042025820,3.0632,193.07,192.96,16.08310999]
[1735042026515,3.0632,193.07,193.03,2.5941]
[1735042027312,5.6568,193.07,193.02,2.5943]
[1735042027718,3.0632,193.07,192.99,3.18]
[1735042027919,2.5938,193.06,193.0,2.5945]
[1735042028216,8.25857228,193.05,193.0,2.5945]
[1735042028422,8.25857228,193.05,192.99,5.7746]
[1735042028621,8.25857228,193.03,192.94,3.18]
[1735042028825,8.25857228,193.03,192.95,8.25857228]
[1735042029016,8.25857228,193.01,192.95,8.25857228]
[1735042030522,8.25857228,193.01,192.95,10.85367228]
[1735042030725,8.25857228,193.01,192.95,2.5951]
[1735042032224,8.25857228,193.01,192.99,2.5947]
[1735042032525,8.25857228,193.03,192.95,8.25857228]
[1735042033521,8.25857228,193.03,192.98,2.5947]
[1735042034121,8.25857228,193.03,192.97,8.25857228]
[1735042034323,8.25857228,193.03,192.99,2.5947]
[1735042036329,8.25857228,193.03,192.95,8.25857228]
[1735042036727,10.85287228,193.03,192.97,2.5949]
[1735042037222,10.85317228,193.01,192.95,10.85377228]
[1735042037428,8.25857228,193.01,192.93,11.43857228]
[1735042038027,2.5947,193.0,192.94,2.5953]
[1735042038221,8.25857228,193.01,192.94,2.5953]
[1735042038627,2.5949,192.98,192.93,10.85407228]
[1735042038827,2.5949,192.98,192.92,161.03748674]
[1735042039025,8.25857228,192.97,192.92,161.03748674]
[1735042039220,2.5953,192.95,192.89,8.25857228]
[1735042039532,2.5953,192.95,192.88,3.18]
[1735042039723,8.25857228,192.97,192.89,8.25857228]
[1735042039924,8.25857228,192.97,192.91,8.25857228]
[1735042040124,1.5615,192.98,192.93,8.25857228]
[1735042040625,8.25857228,192.97,192.88,3.18]
[1735042040829,8.25857228,192.97,192.9,8.25857228]
[1735042041624,10.85357228,192.97,192.91,2.5957]
[1735042041828,10.85357228,192.97,192.9,8.25857228]
[1735042041829,8.25857228,192.97,192.9,8.25857228]
[1735042042029,1.5615,192.98,192.88,3.18]
[1735042042030,8.25857228,193.01,192.97,2.5949]
[1735042043826,8.25857228,193.01,192.98,2.5948]
[1735042044028,11.43857228,193.03,192.98,2.5948]
[1735042044228,8.25857228,193.03,192.98,2.5948]
[1735042044629,10.85247228,193.05,192.99,2.5947]
[1735042046437,8.25857228,193.03,192.99,2.5947]
[1735042048730,10.85277228,193.03,192.98,2.5948]
[1735042048931,10.85277228,193.03,192.95,11.45857228]
[1735042048932,8.25857228,193.03,192.95,11.45857228]
[1735042049132,8.25857228,193.01,192.95,11.45857228]
[1735042049333,8.25857228,192.99,192.95,3.2]
[1735042049535,8.25857228,192.99,192.92,8.25857228]
[1735042050436,8.25857228,192.99,192.94,2.5953]
[1735042052940,8.25857228,192.99,192.95,2.5952]
[1735042054442,9.73357228,192.99,192.95,2.5952]
[1735042054942,10.85367228,192.97,192.91,115.98413436]
[1735042055137,8.25857228,192.95,192.89,8.25857228]
[1735042056241,8.25857228,192.95,192.9,2.5959]
[1735042062943,10.85387228,192.95,192.9,2.5959]
[1735042063840,10.85387228,192.95,192.89,2.596]
[1735042064144,8.25857228,192.91,192.83,8.25857228]
[1735042064345,8.25857228,192.89,192.83,8.25857228]
[1735042065541,8.25857228,192.89,192.84,2.5967]
[1735042066645,8.25857228,192.89,192.85,2.5966]
[1735042066945,8.25857228,192.89,192.83,8.25857228]
[1735042067247,8.25857228,192.91,192.83,8.25857228]
[1735042068848,8.25857228,192.91,192.81,3.2]
[1735042069043,8.25857228,192.87,192.77,56.01901647]
[1735042069348,8.25857228,192.83,192.77,56.01901647]
[1735042069844,8.25857228,192.85,192.78,8.25857228]
[1735042070048,8.25857228,192.87,192.8,8.25857228]
[1735042070244,11.45857228,192.89,192.82,8.25857228]
[1735042070440,11.45857228,192.89,192.84,2.5967]
[1735042071648,11.45857228,192.89,192.83,2.5968]
[1735042072146,3.2,192.89,192.83,2.5968]
[1735042074952,5.6418,192.9,192.83,2.5968]
[1735042075251,5.6418,192.9,192.82,2.597]
[1735042075550,5.6418,192.9,192.79,3.2]
[1735042076452,5.6418,192.9,192.83,2.5967]
[1735042077452,5.6418,192.9,192.84,2.5967]
[1735042079659,5.6418,192.9,192.79,3.2]
[1735042079857,5.6418,192.9,192.85,2.5966]
[1735042080358,3.0458,192.9,192.86,2.5964]
[1735042081657,1.4704,192.9,192.81,12.92643146]
[1735042081852,1.4849,192.91,192.84,12.92643146]
[1735042082357,1.4849,192.91,192.9,2.5959]
[1735042082756,2.5952,192.96,192.9,2.5959]
[1735042082955,4.2126,192.96,192.9,2.5959]
[1735042083255,4.2126,192.96,192.85,3.18]
[1735042083454,1.6174,192.96,192.93,2.5954]
[1735042084955,1.6174,192.96,192.95,2.5952]
[1735042085157,2.9759,192.99,192.9,12.92643146]
[1735042085360,1.4871,192.99,192.91,3.18]
[1735042085857,1.4871,192.99,192.97,2.5949]
[1735042086053,1.4871,192.99,192.91,3.18]
[1735042086459,2.5949,192.98,192.91,2.5958]
[1735042086855,2.5954,192.94,192.88,2.5961]
[1735042087053,12.92643146,192.97,192.88,2.5961]
[1735042087956,2.5953,192.95,192.89,2.596]
[1735042088561,15.52153146,192.97,192.9,2.5959]
[1735042089361,15.52153146,192.97,192.91,2.5958]
[1735042093361,12.92643146,192.97,192.87,16.10643146]
[1735042094363,12.92643146,192.97,192.9,2.5959]
[1735042094562,12.92643146,192.97,192.87,16.10643146]
[1735042095558,12.92643146,192.97,192.92,2.5956]
[1735042097164,2.5951,192.96,192.9,2.5959]
[1735042097457,12.92643146,192.94,192.83,3.18]
[1735042098060,2.5957,192.92,192.86,2.5964]
[1735042100670,12.92643146,192.94,192.8,113.45102524]
[1735042100971,12.92643146,192.94,192.84,2.5967]
[1735042101268,2.5962,192.89,192.82,2.5969]
[1735042102271,1.4959,192.9,192.8,113.45102524]
[1735042102569,1.4959,192.9,192.82,12.92643146]
[1735042102969,1.4959,192.9,192.87,2.5962]
[1735042103469,5.7756,192.93,192.87,2.5962]
[1735042103667,3.18,192.93,192.88,2.5961]
[1735042104165,1.5255,192.95,192.88,12.92643146]
[1735042104362,1.4959,192.97,192.94,2.5953]
[1735042105674,1.4959,192.97,192.89,3.18]
[1735042105871,1.5763,192.96,192.85,16.10643146]
[1735042106470,14.50273146,192.96,192.85,3.18]
[1735042106672,17.68273146,192.96,192.85,3.18]
[1735042107371,2.5955,192.93,192.87,2.5962]
[1735042109476,2.5955,192.93,192.86,2.5964]
[1735042109775,2.5955,192.93,192.81,16.10643146]
[1735042110275,10.86403982,192.93,192.87,2.5962]
[1735042110869,8.26853982,192.93,192.88,2.5962]
[1735042113175,8.26853982,192.93,192.86,8.26853982]
[1735042113379,10.86403982,192.93,192.87,2.5963]
[1735042113773,8.26853982,192.91,192.87,2.5963]
[1735042113973,8.26853982,192.91,192.84,8.26853982]
[1735042114177,10.86433982,192.91,192.85,2.5965]
[1735042114378,8.26853982,192.89,192.82,11.44853982]
[1735042115379,9.81293982,192.89,192.83,2.5968]
[1735042116576,2.5962,192.88,192.83,2.5968]
[1735042117281,8.26853982,192.87,192.83,2.5968]
[1735042117481,8.26853982,192.85,192.8,113.45102524]
[1735042117677,8.26853982,192.83,192.77,8.26853982]
[1735042118184,2.5968,192.84,192.78,2.5974]
[1735042118381,8.26853982,192.85,192.77,8.26853982]
[1735042118883,8.26853982,192.87,192.81,8.26853982]
[1735042119084,9.81293982,192.89,192.81,8.26853982]
[1735042120487,12.40913982,192.89,192.83,2.5968]
[1735042121180,9.81293982,192.89,192.85,2.5966]
[1735042122785,9.81293982,192.89,192.83,8.26853982]
[1735042123084,9.81293982,192.89,192.86,2.5964]
[1735042123284,9.81293982,192.89,192.8,3.18]
[1735042123487,9.81293982,192.89,192.85,2.5966]
[1735042124086,9.81293982,192.89,192.84,2.5967]
[1735042124284,3.0546,192.9,192.84,8.26853982]
[1735042124285,1.4878,192.9,192.84,8.26853982]
[1735042124480,8.26853982,192.93,192.86,8.26853982]
[1735042124685,8.26853982,192.93,192.9,2.5959]
[1735042124882,14.04373982,192.95,192.9,2.5959]
[1735042126198,14.04373982,192.95,192.88,8.26853982]
[1735042126395,14.04373982,192.95,192.89,2.596]
[1735042130398,10.86373982,192.95,192.89,2.596]
[1735042131994,10.86413982,192.93,192.87,2.5963]
[1735042135103,5.7707,192.94,192.87,8.26853982]
[1735042136410,5.7707,192.94,192.89,2.596]
[1735042140905,10.86413982,192.93,192.87,2.5963]
[1735042141208,8.26853982,192.91,192.87,2.5963]
[1735042142012,8.26853982,192.91,192.81,56.01901647]
[1735042142310,10.86453982,192.89,192.81,8.26853982]
[1735042143010,10.86453982,192.89,192.83,2.5968]
[1735042143310,3.2,192.92,192.83,8.26853982]
[1735042143514,3.2,192.92,192.79,56.01901647]
[1735042143515,10.86423982,192.92,192.87,2.5963]
[1735042143813,8.26853982,192.92,192.84,8.26853982]
[1735042145404,10.86423982,192.92,192.86,2.5964]
[1735042146910,8.26853982,192.9,192.82,8.26853982]
[1735042147419,2.5961,192.89,192.83,2.5968]
[1735042148514,2.5962,192.88,192.83,2.5968]
[1735042148715,10.86473982,192.88,192.83,2.5968]
[1735042148914,8.26853982,192.84,192.76,56.01901647]
[1735042149118,8.26853982,192.84,192.76,64.28755629]
[1735042149314,10.86553982,192.82,192.76,56.01901647]
[1735042149514,8.26853982,192.82,192.75,56.01901647]
[1735042150015,8.26853982,192.8,192.75,56.01901647]
[1735042150716,8.26853982,192.78,192.71,113.49830228]
[1735042150914,3.2,192.84,192.71,113.49830228]
[1735042150915,1.4981,192.79,192.71,113.49830228]
[1735042151115,8.26853982,192.77,192.71,113.49830228]
[1735042151520,8.26853982,192.77,192.72,2.5983]
[1735042151817,8.26853982,192.76,192.69,3.2]
[1735042152016,8.26853982,192.76,192.69,11.46853982]
[1735042152212,1.5431,192.78,192.69,3.2]
[1735042152413,3.0772,192.78,192.69,3.2]
[1735042152610,3.0772,192.78,192.67,3.2]
[1735042152611,1.5431,192.78,192.67,3.2]
[1735042152818,1.5431,192.78,192.69,12.94363772]
[1735042153512,1.5431,192.78,192.73,2.5981]
[1735042153724,1.5431,192.78,192.69,12.94363772]
[1735042154613,1.5431,192.78,192.74,2.598]
[1735042155621,1.4981,192.79,192.72,12.94363772]
[1735042155818,3.1435,192.84,192.75,12.94363772]
[1735042156114,402.45757724,192.99,192.78,12.94363772]
[1735042156115,1.593,192.89,192.78,12.94363772]
[1735042156320,1.593,192.89,192.79,3.22]
[1735042157220,1.593,192.89,192.82,2.5969]
[1735042158409,4.1891,192.89,192.82,2.5969]
[1735042159724,1.593,192.89,192.79,3.22]
[1735042159923,2.5962,192.88,192.81,2.5971]
[1735042160125,14.53663772,192.89,192.75,3.22]
[1735042160425,1.5816,192.87,192.74,3.22]
[1735042160623,1.4802,192.86,192.74,3.22]
[1735042161022,2.5967,192.84,192.77,2.5975]
[1735042161325,17.62383772,192.86,192.74,3.22]
[1735042161525,17.62383772,192.86,192.73,12.94363772]
[1735042162525,17.62383772,192.86,192.76,2.5978]
[1735042162822,17.62383772,192.86,192.73,12.94363772]
[1735042163422,2.5969,192.83,192.76,2.5978]
[1735042163923,2.5969,192.83,192.77,2.5976]
[1735042165224,2.597,192.82,192.77,2.5976]
[1735042167014,2.5967,192.84,192.73,12.94363772]
[1735042167219,4.7402,192.86,192.73,12.94363772]
[1735042167421,4.7402,192.86,192.76,12.94363772]
[1735042168520,2.5966,192.85,192.79,2.5973]
[1735042168926,1.4802,192.86,192.78,3.26]
[1735042169522,1.4802,192.86,192.79,12.94363772]
[1735042170321,1.4802,192.86,192.82,2.5969]
[1735042170923,1.5816,192.87,192.82,2.5969]
[1735042176229,9.85590709,192.87,192.82,2.5969]
[1735042182229,9.85590709,192.87,192.78,3.26]
[1735042182425,8.27430709,192.85,192.8,2.5971]
[1735042182928,10.87100709,192.85,192.8,2.5971]
[1735042183432,8.27430709,192.83,192.72,56.01901647]
[1735042183626,10.87140709,192.81,192.73,11.53430709]